Cogmind - Beta 16.1 @@@ ROGUE MODE // 2026.03.15 @ 14:33:48 Player: StaticNoob Result: Destroyed by B-75 Beast with Heavy Plasma Cannon Performance ------------- Evolutions (5) 2500 Regions Visited (10) 2000 Robots Destroyed (177) 885 Value Destroyed (5955) 5955 Prototype IDs (22) 440 Alien Tech Used (1) 200 Bonus (649) 649 TOTAL SCORE: 12629 Bonus ------- High Alert Combat Kills 11 Follower Combat Kills 40 Registered with UFD 300 Met Optimus in HQ 500 Friendly Fire -202 Cogmind --------- Core Integrity 0/1000 Matter 300/300 Energy 98/100 System Corruption 7% Temperature Cool (12) Movement Core (100) Ox1 Location -5/Upper Caves Parts ------- > --- POWER (1) -------- (None) > --- PROPULSION (6) --- (None) > --- UTILITY (9) ------ Advanced Heat Sink Advanced Signal Interpreter Target Analyzer Improved Target Analyzer Improved Target Analyzer Core Analyzer > --- WEAPON (2) ------- Companion Sword > --- INVENTORY (5) ---- Carbon-fiber Leg Medium Matter Pod (100) 01-MTF's Shockpuncher Rocket Launcher Improved Datajack Peak State ------------ > --- POWER ------------ Neutrino Core > --- PROPULSION ------- Heavy Treads Antigrav System Antigrav System Antigrav System > --- UTILITY ---------- Advanced Heat Sink Advanced Heat Sink High-capacity Storage Unit Advanced Signal Interpreter Terrain Scanner Target Analyzer Improved Target Analyzer Improved Target Analyzer Core Analyzer > --- WEAPON ----------- Heavy Proton Cannon Companion Sword > --- INVENTORY -------- Micro Fission Core Micro Fission Core Carbon-fiber Leg Medium Matter Pod Advanced ECM Suite Hacking Suite A0-MCA's Component Scanner 01-MTF's Shockpuncher Rocket Launcher Improved Datajack Plasma Cutter DRS Beacon [Rating: 88] Favorites ----------- Power Mini Fusion Reactor Engine Heavy Ion Engine Power Core Light Fission Core Reactor Mini Fusion Reactor Propulsion Titanium Leg Treads Heavy Treads Leg Titanium Leg Wheel Compact Wheel Hover Unit Antigrav System Utility Melee Analysis Suite Device Improved Sensor Array Storage High-capacity Storage Unit Processor Melee Analysis Suite Protection Centrium Light Armor Plating Weapon Companion Sword Energy Gun Improved EM Shotgun Energy Cannon Heavy Proton Cannon Ballistic Gun Assault Rifle Launcher Grenade Launcher Special Weapon Plasma Cutter Impact Weapon Great Maul Slashing Weapon Companion Sword Build | -11 -10 -9 -8 -8 -8 -8 -6 -6 -5 -5 ------- Run | Yrd Mat Mat Mat Sto Rec Scr Fac Low Fac Upp Slots Evolved 10 | . . 2 2 . . . 4 . 2 . Power . | . . . . . . . . . . . Propulsion 3 | . . 1 1 . . . 1 . . . Utility 7 | . . 1 1 . . . 3 . 2 . Weapon . | . . . . . . . . . . . Parts Attached 141 | 6 10 26 8 5 8 6 22 13 37 . Power 16 | 1 1 1 . 1 2 . 2 3 5 . Engine 7 | 1 1 1 . 1 1 . 1 . 1 . Core 8 | . . . . . . . 1 3 4 . Reactor 1 | . . . . . 1 . . . . . Propulsion 56 | 2 3 10 3 2 . 5 10 4 17 . Treads 3 | . . . . . . 1 . . 2 . Leg 45 | 2 3 10 3 2 . 4 10 4 7 . Wheel 4 | . . . . . . . . . 4 . Hover 4 | . . . . . . . . . 4 . Flight . | . . . . . . . . . . . Utility 45 | 1 2 7 4 1 1 . 10 6 13 . Device 22 | . 1 3 . . . . 5 5 8 . Storage 5 | 1 1 2 . 1 . . . . . . Processor 11 | . . . 2 . . . 4 1 4 . Hackware . | . . . . . . . . . . . Protection 7 | . . 2 2 . 1 . 1 . 1 . Artifact . | . . . . . . . . . . . Weapon 24 | 2 4 8 1 1 5 1 . . 2 . Energy Gun 4 | 1 2 . . . 1 . . . . . Energy Cannon 2 | . . . . . 1 . . . 1 . Ballistic Gun 3 | 1 2 . . . . . . . . . Ballistic Cannon . | . . . . . . . . . . . Launcher 3 | . . 1 . 1 . . . . 1 . Special Weapon 1 | . . 1 . . . . . . . . Impact Weapon 6 | . . 6 . . . . . . . . Slashing Weapon 5 | . . . 1 . 3 1 . . . . Piercing Weapon . | . . . . . . . . . . . Special Melee Weapon . | . . . . . . . . . . . Unidentified Prototypes 11 | . 1 1 . 1 4 1 1 1 1 . Corrupted Parts 2 | . . 2 . . . . . . . . System Corruption 18 | . . 18 . . . . . . . . Parts Lost 69 | . 5 10 3 1 . . 6 12 27 5 Power 9 | . 1 1 . . . . 1 2 4 . Propulsion 34 | . 2 6 1 1 . . 2 6 13 3 Utility 24 | . . 3 2 . . . 3 4 10 2 Weapon 2 | . 2 . . . . . . . . . Highest Loss Streak 6 | . 5 3 1 1 . . 3 5 6 5 To Critical Strikes . | . . . . . . . . . . . Average Backups 14 | . 4 9 14 17 19 18 17 16 10 8 Power . | . . . 1 1 1 1 1 . 1 . Propulsion 2 | . 2 . 1 4 5 3 2 1 . 1 Utility 6 | . 1 3 6 6 7 9 9 9 5 3 Weapon 3 | . . 4 5 4 4 3 3 2 1 2 Tool/Special . | . . . . . . . . . . . Unused Backups 21 | . 2 1 1 2 3 2 2 1 3 4 Power 1 | . . . . . . . . . 1 . Propulsion 5 | . . . 1 2 1 1 . . . . Utility 8 | . 2 . . . . . 1 1 1 3 Weapon 5 | . . 1 . . 2 1 1 . . . Tool/Special 2 | . . . . . . . . . 1 1 Average Slot Usage (%) 90 | . 93 92 98 98 99 95 90 82 72 63 Engine 4 | . 8 10 8 9 4 . . . . . Core 1 | . . . . . . . 1 5 4 3 Reactor 2 | . . . . . 3 9 4 . . . Leg 28 | . 27 28 35 35 36 36 31 22 10 . Device 7 | . 11 14 8 . . . 6 14 13 12 Storage 8 | . 16 11 9 9 9 9 6 6 5 3 Processor 15 | . . . 7 18 18 18 22 24 23 27 Protection 5 | . . 5 10 8 9 9 9 . . . Energy Gun 2 | . 22 3 . . . . . . . . Impact Weapon 4 | . . 18 16 8 . . . . . . Slashing Weapon 6 | . . . 1 9 17 13 6 6 5 5 Peak Build Rating 88 | 6 11 24 31 34 45 48 77 69 88 74 Average Rating 41 | 4 9 16 29 30 37 44 65 61 65 55 On Entrance 35 | . 6 11 23 30 31 45 46 68 55 74 Avg Prop Armor Cover (%) 14 | . . . . . . . . 7 14 10 Naked Turns . | . . . . . . . . . . . Heaviest Build 68 | 11 15 45 50 57 57 57 60 56 68 52 Greatest Support 92 | 20 20 44 61 68 61 61 92 89 85 70 Greatest Overweight (x) 19 | . 1 4 . 1 . . . 1 19 2 Average Overweight (x) . | . . . . . . . . . 1 . Largest Inventory Capacity 20 | 8 8 15 15 20 20 20 20 20 20 20 Average Capacity 17 | 6 8 13 15 19 20 20 20 20 20 14 Most Carried 20 | . 7 15 15 20 20 20 20 20 14 11 Average Carried 14 | . 5 10 14 18 19 19 18 18 11 8 Final Capacity 20 | 8 8 15 15 20 20 20 20 20 20 5 Final Carried 20 | . 6 13 15 20 20 20 20 12 11 5 Class Distribution -------------------- 35% | Mutant 29% | Gladiator 27% | Scavenger-Mutant 4% | Commander-Mutant 3% | Scavenger-Assassin Dominant Class ---------------- Mutant | -10/Materials Mutant | -9/Materials Gladiator | -8/Materials Gladiator | -8/Storage Gladiator | -8/Recycling Gladiator | -8/Scraptown Mutant | -6/Factory Scavenger-Assassin | -6/Lower Caves Scavenger-Mutant | -5/Factory Scavenger-Mutant | -5/Upper Caves Resources | -11 -10 -9 -8 -8 -8 -8 -6 -6 -5 -5 ----------- Run | Yrd Mat Mat Mat Sto Rec Scr Fac Low Fac Upp Matter Collected 2327 | 169 360 337 155 130 120 70 285 178 523 . Remotely 50 | . . . . . . . . . 50 . Salvage Created 8071 | . 468 1340 527 1080 871 . 1435 637 1646 67 Parts 390 | . 41 57 17 51 34 . 68 30 91 1 Haulers Intercepted 13 | . 2 6 1 4 . . . . . . Recyclers Shooed 5 | . . . . . 5 . . . . . Parts Field Recycled . | . . . . . . . . . . . Retrieved Matter . | . . . . . . . . . . . Parts Self-Destructed 35 | . . . . . . . . 24 . 11 Prevented . | . . . . . . . . . . . Parts Restored . | . . . . . . . . . . . Kills | -11 -10 -9 -8 -8 -8 -8 -6 -6 -5 -5 ------- Run | Yrd Mat Mat Mat Sto Rec Scr Fac Low Fac Upp Combat Hostiles Destroyed 125 | . 11 24 11 17 6 . 20 12 24 . Melee 83 | . . 9 6 15 6 . 20 11 16 . Guns 13 | . 11 2 . . . . . . . . Cannons 1 | . . 1 . . . . . . . . AOE 12 | . . 4 . . . . . . 8 . Classes Destroyed 20 | . 6 3 1 1 4 . . 1 3 1 Worker 8 | . 1 3 . 1 . . 1 . 2 . Builder 3 | . . . . . 2 . . . 1 . Tunneler 1 | . . . . . . . . . 1 . Hauler 13 | . 2 6 1 4 . . . . . . Recycler 16 | . . 3 . . 8 . 2 . 3 . Mechanic 1 | . . . . . . . . . 1 . Operator 2 | . 1 . 1 . . . . . . . Watcher 7 | . 2 3 . . . . 1 . 1 . Swarmer 19 | . 6 6 . . . . . 3 4 . Cutter 3 | . . . . . . . . . 3 . Grunt 54 | . 5 11 5 8 . . 11 7 7 . Brawler 1 | . . . . 1 . . . . . . Duelist 4 | . . 1 . 1 1 . . 1 . . Protector 1 | . . . . . 1 . . . . . Sentry 23 | . . 6 4 7 2 . 2 . 2 . Demolisher 1 | . . . . . 1 . . . . . Hunter 8 | . . . 2 . . . 4 . 2 . Programmer 10 | . . . . . 1 . 3 . 6 . Behemoth 1 | . . . . . . . . 1 . . Mutant 1 | . . . . . . . . . . 1 Best Kill Streak 12 | . 7 5 2 3 12 . 5 4 8 . Combat Bots Only 7 | . 6 4 2 3 2 . 5 4 7 . Max Kills in Single Turn 4 | . 1 2 1 1 1 . 2 2 4 1 Gunslinging . | . . . . . . . . . . . Exploded 3 | . . 2 . . . . . . 3 . Melee 2 | . . 1 1 1 1 . 2 2 1 . Uniques/NPCs Destroyed . | . . . . . . . . . . . Combat | -11 -10 -9 -8 -8 -8 -8 -6 -6 -5 -5 -------- Run | Yrd Mat Mat Mat Sto Rec Scr Fac Low Fac Upp Hostile Shots Fired 1017 | . 103 154 98 51 18 . 159 113 263 58 Missed 258 | . 28 38 31 12 2 . 39 25 65 18 Deflected 25 | . . . . . . . 5 11 9 . Hits 759 | . 75 116 67 39 16 . 120 88 198 40 Melee 16 | . . . . 3 3 . . 3 7 . Projectile 743 | . 75 116 67 36 13 . 120 85 191 40 AOE 5 | . . . . . 5 . . . . . Critical Strikes 35 | . 2 2 6 3 4 . 6 1 11 . Damage Taken 11268 | . 797 1184 713 652 384 . 1635 1830 3719 354 Core 2349 | . 176 192 64 113 76 . 316 400 809 203 Absorbed by Shields 798 | . . 276 270 . . . 140 112 . . Redirected to Shielding 19 | . . . . . . . 19 . . . Ignored by Resistances 144 | . . . . . . . 24 . 120 . Regen/Repaired (Parts) 423 | . . . 79 344 . . . . . . Core Remaining (%) 50 | 100 29 52 . . . 54 . 15 . . Volleys Fired 63 | 3 41 15 . . . . . . 4 . Largest 2 | 2 2 2 . . . . . . 1 . Hottest 90 | 60 90 90 . . . . . . 33 . Shots Fired 116 | 6 80 26 . . . . . . 4 . Gun 108 | 6 80 22 . . . . . . . . Cannon . | . . . . . . . . . . . Launcher 8 | . . 4 . . . . . . 4 . Special . | . . . . . . . . . . . Kinetic 41 | 3 38 . . . . . . . . . Thermal 31 | 3 28 . . . . . . . . . Explosive 8 | . . 4 . . . . . . 4 . Electromagnetic 36 | . 14 22 . . . . . . . . Robot Hit Streak 10 | 6 10 7 . . . . . . 2 . Robot Miss Streak 3 | . 3 3 . . . . . . . . Penetration Max . | . . . . . . . . . . . Secondary Targets 1 | . 1 . . . . . . . . . Max Gunslinging Chain 1 | . 1 . . . . . . . . . Shots Hit Robots 420 | 6 51 85 36 51 33 . 59 31 66 2 Core Hits 191 | . 24 28 5 19 13 . 28 18 55 1 Critical Kills 7 | . . 5 2 . . . . . . . Critical Parts Destroyed 24 | . . 13 9 2 . . . . . . Critical Strikes 49 | . . 18 11 8 4 . 4 . 4 . Smash 31 | . . 18 11 2 . . . . . . Sever 10 | . . . . 6 4 . . . . . Melee Attacks 487 | . . 102 45 69 38 . 85 61 85 2 Impact 160 | . . 102 42 16 . . . . . . Slashing 327 | . . . 3 53 38 . 85 61 85 2 Piercing . | . . . . . . . . . . . Sneak Attacks 50 | . . 14 1 7 16 . 3 . 8 1 Combat Hostiles 1 | . . 1 . . . . . . . . Follow-up Attacks 32 | . . 12 4 7 6 . 2 1 . . Martial Strikes 17 | . . . . . . . 6 8 3 . Damage Inflicted 17060 | 72 686 3371 1440 2115 1547 . 2764 1352 3582 131 Guns 1007 | 72 656 279 . . . . . . . . Cannons . | . . . . . . . . . . . Explosions 942 | . 28 252 . . . . . . 662 . Melee 15108 | . . 2840 1440 2115 1547 . 2764 1352 2919 131 Ramming 3 | . 2 . . . . . . . 1 . Kinetic 290 | 39 251 . . . . . . . . . Thermal 277 | 33 244 . . . . . . . . . Explosive 914 | . . 252 . . . . . . 662 . Electromagnetic 468 | . 189 279 . . . . . . . . Impact 4771 | . . 2840 1338 593 . . . . . . Slashing 10337 | . . . 102 1522 1547 . 2764 1352 2919 131 Piercing . | . . . . . . . . . . . Highest Corruption 18 | . . 18 . . 1 . 1 9 7 7 Average Corruption 4 | . . 7 . . 1 . 1 3 3 7 Corruption Purged . | . . . . . . . . . . . Corruption Blocked . | . . . . . . . . . . . Effects 85 | . . 41 . . 5 . 2 12 21 4 Message Errors 23 | . . 12 . . 1 . . 4 5 1 Matter Fused 22 | . . 11 . . . . . 5 6 . Heat Flow Errors 12 | . . 6 . . . . 1 . 4 1 Energy Discharges 11 | . . 6 . . . . 1 2 1 1 Parts Rejected 3 | . . . . . . . . 1 2 . Parts Fused 1 | . . . . . . . . . 1 . Data Loss (minor) 6 | . . 2 . . 2 . . . 1 1 Data Loss (major) 5 | . . 3 . . 2 . . . . . Alerts 1 | . . . . . . . . . 1 . Misdirections 1 | . . 1 . . . . . . . . Overload Shots . | . . . . . . . . . . . Overflow Damage 2238 | . 13 910 522 205 255 . 128 1 156 48 Projectiles . | . . . . . . . . . . . Explosions 22 | . 13 9 . . . . . . . . Melee 2216 | . . 901 522 205 255 . 128 1 156 48 Knockbacks 16 | . . 9 7 . . . . . . . Impact 13 | . . 6 7 . . . . . . . Kinetic . | . . . . . . . . . . . Secondary 3 | . . 3 . . . . . . . . Self-Inflicted Damage 82 | . 34 . . . . . . . 48 . Shots 2 | . 1 . . . . . . . 1 . Rammed . | . . . . . . . . . . . Targets Rammed 2 | . 1 . . . . . . . 1 . Kicked 2 | . 1 . . . . . . . 1 . Crushed . | . . . . . . . . . . . Highest Temperature 272 | . 144 264 2 9 . . 272 . 170 178 Average Temperature 67 | . 48 79 2 8 . . 134 . 69 89 Received Heat Transfer 2337 | . 300 475 247 270 9 . 342 247 411 36 Siege Activations . | . . . . . . . . . . . Martial Activations 14 | . . . . . . . 4 6 4 . Total Turns 1237 | . . . . . . . 149 393 695 . Longest Duration 793 | . . . . . . . 84 244 793 . Shielding Activations . | . . . . . . . . . . . Robots Disrupted . | . . . . . . . . . . . Combat Hostiles . | . . . . . . . . . . . Robots Corrupted 25 | . 1 14 7 3 . . . . . . Combat Hostiles 15 | . . 8 5 2 . . . . . . Parts Fried 32 | . 2 18 7 5 . . . . . . Impact Corruptions 53 | . . 32 15 6 . . . . . . Robots Melted . | . . . . . . . . . . . Combat Hostiles . | . . . . . . . . . . . Parts Melted 3 | . . . . . . . . 2 1 . Heat Transferred 600 | 75 525 . . . . . . . . . Parts Sabotaged . | . . . . . . . . . . . Parts Stolen . | . . . . . . . . . . . Parts Stripped . | . . . . . . . . . . . Power Chain Reactions 1 | . 1 . . . . . . . . . Alert | -11 -10 -9 -8 -8 -8 -8 -6 -6 -5 -5 ------- Run | Yrd Mat Mat Mat Sto Rec Scr Fac Low Fac Upp Maximum Alert Level 2 | . . 1 . 2 . . 1 . 1 . Low Security (%) 76 | 100 100 41 100 67 100 . 77 . 79 . Level 1 22 | . . 58 . 27 . . 22 . 20 . Level 2 . | . . . . 4 . . . . . . Level 3 . | . . . . . . . . . . . Level 4 . | . . . . . . . . . . . Level 5 . | . . . . . . . . . . . High Security . | . . . . . . . . . . . Max Security . | . . . . . . . . . . . Peak Influence 418 | . 147 356 158 418 120 . 359 . 246 . Initial 133 | . . . 133 63 120 . . . . . Average 100 | . 27 178 83 160 49 . 85 . 75 . Influence Increases 4207 | . 303 867 349 782 215 . 762 280 649 . Destroy 0b10 Robot/C 2500 | . 220 480 220 340 100 . 420 240 480 . Destroy 0b10 Robot/NC 260 | . 30 75 10 25 55 . 20 . 45 . Destroy Leader 610 | . 38 148 72 98 . . 122 40 92 . Allied During Kill 7 | . . . . . 3 . 4 . . . Successful Hack 172 | . 13 32 16 57 12 . 42 . . . Select Force Hacks 30 | . . . . . 30 . . . . . Disable Machine 90 | . . 30 15 30 . . 15 . . . Anti-Garrison Action 200 | . . . . 200 . . . . . . Destroy Structure 98 | . 2 27 1 2 . . 34 . 32 . Lose Combat Pursuer 240 | . . 75 15 30 15 . 105 . . . Influence Decreases 4207 | . 303 551 515 622 504 21 425 617 477 172 Entered New Map 671 | . . . 183 87 190 21 . 126 . 64 Time Decay 2864 | . 253 461 302 458 314 . 360 404 262 50 Lost Part 582 | . 50 90 30 10 . . 50 87 215 50 Lost Ally 23 | . . . . . . . 15 . . 8 Purge Threat 67 | . . . . 67 . . . . . . Squads Dispatched 25 | . 3 2 2 1 . . 11 . 6 . Investigation 9 | . 3 1 1 1 . . 2 . 1 . Extermination 6 | . . . . . . . 3 . 3 . Reinforcement 5 | . . 1 1 . . . 1 . 2 . Assault 2 | . . . . . . . 2 . . . Garrison 3 | . . . . . . . 3 . . . Intercept . | . . . . . . . . . . . Searches Triggered . | . . . . . . . . . . . Construction Impeded 2 | . . . . . . . 1 . 1 . Haulers Reinforced . | . . . . . . . . . . . Active Scanning Responses . | . . . . . . . . . . . Cargo Convoy Interrupts 1 | . . . . . . . . . 1 . Stealth | -11 -10 -9 -8 -8 -8 -8 -6 -6 -5 -5 --------- Run | Yrd Mat Mat Mat Sto Rec Scr Fac Low Fac Upp Distress Signals 12 | . 2 3 1 2 1 . 1 . 2 . Communications Jammed . | . . . . . . . . . . . Distress Signals . | . . . . . . . . . . . Times Spotted 179 | . 19 38 17 19 7 . 32 12 34 1 Peak Tracking Total 7 | . 7 5 7 3 4 . 5 4 6 1 Tactical Retreats 11 | . . 4 1 2 1 . 3 . . . Traps | -11 -10 -9 -8 -8 -8 -8 -6 -6 -5 -5 ------- Run | Yrd Mat Mat Mat Sto Rec Scr Fac Low Fac Upp Traps Triggered 3 | . 1 . . . . . 2 . . . Indirectly . | . . . . . . . . . . . Trap Hack Attempts . | . . . . . . . . . . . Triggered . | . . . . . . . . . . . Disarmed . | . . . . . . . . . . . Reprogrammed . | . . . . . . . . . . . Reused . | . . . . . . . . . . . Traps Extracted . | . . . . . . . . . . . Installed . | . . . . . . . . . . . Triggered . | . . . . . . . . . . . Machines | -11 -10 -9 -8 -8 -8 -8 -6 -6 -5 -5 ---------- Run | Yrd Mat Mat Mat Sto Rec Scr Fac Low Fac Upp Machines Disabled 6 | . . 2 1 2 . . 1 . . . Max in Single Turn 1 | . . 1 1 1 . . 1 . . . Garrison Access 3 | . . . 1 1 . . 1 . . . Machines Repaired . | . . . . . . . . . . . Machines Dismantled . | . . . . . . . . . . . Machines Sabotaged . | . . . . . . . . . . . Overloaded Fab Kills . | . . . . . . . . . . . Hacking | -11 -10 -9 -8 -8 -8 -8 -6 -6 -5 -5 --------- Run | Yrd Mat Mat Mat Sto Rec Scr Fac Low Fac Upp Machines Accessed 58 | . 5 8 7 12 9 3 10 . 4 . Terminals 35 | . 4 7 5 8 5 . 3 . 3 . Fabricators 2 | . . . . . . . 1 . 1 . Repair Stations 6 | . . . 1 2 . . 3 . . . Recycling Units 8 | . 1 1 . 1 4 . 1 . . . Scanalyzers 1 | . . . . . . . 1 . . . Garrison Access 3 | . . . 1 1 . . 1 . . . Total Hacks 176 | . 17 18 24 40 29 8 31 . 9 . Successful 77 | . 7 7 10 21 10 8 13 . 1 . Failed 98 | . 10 11 14 19 19 . 17 . 8 . Catastrophic 23 | . . 4 2 5 6 . 4 . 2 . Database Lockouts 1 | . . . . . . . 1 . . . Manual 99 | . 14 17 17 20 17 . 12 . 2 . Terminals 102 | . 14 17 19 20 17 . 8 . 7 . Fabricators 5 | . . . . . . . 3 . 2 . Repair Stations 24 | . . . 4 13 . . 7 . . . Recycling Units 22 | . 3 1 . 4 12 . 2 . . . Scanalyzers 8 | . . . . . . . 8 . . . Garrison Access 7 | . . . 1 3 . . 3 . . . Terminal Hacks 20 | . 3 . 3 4 2 8 . . . . Robot Analysis 8 | . 1 . . . 1 6 . . . . Prototype ID Bank 3 | . . . 2 . 1 . . . . . Open Door 3 | . . . . 2 . 1 . . . . Branch Access Points 2 | . 1 . 1 . . . . . . . Unreport Threat 1 | . . . . 1 . . . . . . Locate Traps 2 | . 1 . . 1 . . . . . . Proto ID Catalog 1 | . . . . . . 1 . . . . Fabricator Hacks 2 | . . . . . . . 1 . 1 . Network Status 2 | . . . . . . . 1 . 1 . Repair Station Hacks 12 | . . . 2 9 . . 1 . . . Scan Component 7 | . . . 1 5 . . 1 . . . Repair 5 | . . . 1 4 . . . . . . Recycling Unit Hacks 4 | . . 1 . 1 2 . . . . . Retrieve Components 4 | . . 1 . 1 2 . . . . . Scanalyzer 7 | . . . . . . . 7 . . . Insert Component 3 | . . . . . . . 3 . . . Analyze 3 | . . . . . . . 3 . . . Retrieve Study 1 | . . . . . . . 1 . . . Garrison Access Hacks 1 | . . . 1 . . . . . . . Seal Access 1 | . . . 1 . . . . . . . Unauthorized Hacks 31 | . 4 6 4 7 6 . 4 . . . Terminals 27 | . 4 6 4 6 5 . 2 . . . Botnet 1 | . . . 1 . . . . . . . Operators 2 | . . 1 . 1 . . . . . . Skim 24 | . 4 5 3 5 5 . 2 . . . Fabricators 2 | . . . . . . . 2 . . . Liberate 1 | . . . . . . . 1 . . . Fabnet 1 | . . . . . . . 1 . . . Repair Stations . | . . . . . . . . . . . Recycling Units 1 | . . . . . 1 . . . . . Tunnel 1 | . . . . . 1 . . . . . Scanalyzers . | . . . . . . . . . . . Garrison Access 1 | . . . . 1 . . . . . . Jam 1 | . . . . 1 . . . . . . Data Cores Recovered 1 | . 1 . . . . . . . . . Used . | . . . . . . . . . . . Hacking Detections 51 | . 5 8 6 10 8 . 10 . 4 . Full Trace Events 9 | . 1 1 1 . 3 . 2 . 1 . Feedback Events 1 | . . . . . 1 . . . . . Corruption 1 | . . . . . 1 . . . . . Feedback Blocked . | . . . . . . . . . . . Robot Schematics Acquired . | . . . . . . . . . . . Robots Built . | . . . . . . . . . . . Authchips . | . . . . . . . . . . . Time . | . . . . . . . . . . . Total Robot Build Rating . | . . . . . . . . . . . Part Schematics Acquired 2 | . . . . . . . 2 . . . Parts Built . | . . . . . . . . . . . Authchips . | . . . . . . . . . . . Time . | . . . . . . . . . . . Total Part Build Rating . | . . . . . . . . . . . Part Studies Acquired 1 | . . . . . . . 1 . . . Parts Repaired 5 | . . . 1 4 . . . . . . Time 194 | . . . 51 143 . . . . . . Parts Recycled . | . . . . . . . . . . . Recycled Matter . | . . . . . . . . . . . Retrieved Matter . | . . . . . . . . . . . Retrieved Components 18 | . . 3 . 10 5 . . . . . Parts Scanalyzed 3 | . . . . . . . 3 . . . Part Schematics Acquired 2 | . . . . . . . 2 . . . Parts Damaged . | . . . . . . . . . . . Bothacking | -11 -10 -9 -8 -8 -8 -8 -6 -6 -5 -5 ------------ Run | Yrd Mat Mat Mat Sto Rec Scr Fac Low Fac Upp Used RIF Installer . | . . . . . . . . . . . Robots Hacked 1 | . . . . . . . . . . 1 Non-combat . | . . . . . . . . . . . Combat 1 | . . . . . . . . . . 1 Robot Hacks Applied . | . . . . . . . . . . . Relay Couplers Released 1 | . . . . . . . 1 . . . Machine Destruction 1 | . . . . . . . 1 . . . Fabnet Peak Effective % 3 | . . . . . . . . . 3 3 Autooverrided 1 | . . . . . . . . . . 1 Robots Rewired 3 | . . . . . 3 . . . . . Allies Hacked . | . . . . . . . . . . . Hacks Repelled . | . . . . . . . . . . . Allies | -11 -10 -9 -8 -8 -8 -8 -6 -6 -5 -5 -------- Run | Yrd Mat Mat Mat Sto Rec Scr Fac Low Fac Upp Total Allies 6 | . . . . . 3 1 . 1 . 1 Largest Group 4 | . . . . . 3 4 4 1 . 1 Highest-Rated Group 167 | . . . . . 15 76 76 167 . 29 Highest-Rated Ally 167 | . . . . . 5 61 61 167 . 29 Initial UFD Resources 24 | . . . . . . . 22 22 24 24 Total Orders . | . . . . . . . . . . . Ally Attacks 24 | . . . . . . . 22 . . 2 Total Damage 383 | . . . . . . . 364 . . 19 Kills 1 | . . . . . . . 1 . . . Allies Corrupted . | . . . . . . . . . . . Allies Melted 1 | . . . . . 1 . . . . . Intel | -11 -10 -9 -8 -8 -8 -8 -6 -6 -5 -5 ------- Run | Yrd Mat Mat Mat Sto Rec Scr Fac Low Fac Upp Active Infowar (turns) 3653 | . . . . . . . 1726 1065 797 65 Sensors 3375 | . . . . . . . 1726 1065 584 . Terrain 278 | . . . . . . . . . 213 65 Structural 371 | . . . . . . . . 371 . . Robot Analysis Total 8 | . 1 . . . 1 6 . . . . Derelict Logs Recovered 1 | . . . . . . . . 1 . . Drone Launches . | . . . . . . . . . . . Drone Recoveries . | . . . . . . . . . . . Exploration | -11 -10 -9 -8 -8 -8 -8 -6 -6 -5 -5 ------------- Run | Yrd Mat Mat Mat Sto Rec Scr Fac Low Fac Upp Turns Passed 12186 | 62 1268 1579 663 1553 844 1520 1884 1124 1570 119 Spaces Moved 6542 | 42 440 735 390 621 568 1140 1252 643 638 73 Core 43 | 8 . . . . . . . . 2 33 Treads 102 | . . . . . . . . . 80 22 Legs 6210 | 34 440 735 390 621 568 1140 1252 643 387 . Wheels 155 | . . . . . . . . . 155 . Hover 32 | . . . . . . . . . 14 18 Flight . | . . . . . . . . . . . Fastest Speed 50 | 50 120 120 127 127 127 122 108 116 115 100 Average Speed 137 | 106 120 162 127 127 127 124 117 148 202 136 Slowest Speed 1000 | 120 190 400 130 200 127 127 234 370 1000 176 Overloaded Moves 286 | . . . . . . . 21 91 174 . Propulsion Burnouts . | . . . . . . . . . . . Robots Hopped . | . . . . . . . . . . . Potential Cave-ins 2 | . . . . . . . . 2 . . Cave-ins Triggered 1 | . . . . . . . . 1 . . Exploration Rate (%) 45 | 5 62 69 36 56 95 79 35 48 13 7 Regions Visited 10 Branch Regions 5 Pre-discovered Areas 9 | . . 2 . 5 1 . . 1 . . Known Exits Taken 6 | . . 1 1 . 1 . 1 1 1 . Unknown Exits Taken 4 | 1 1 . . 1 . 1 . . . . Scrap Searched 5 | . . . . . . 4 . 1 . . Spaces Dug 42 | . . 1 1 2 . . 11 16 11 . Terrain Destroyed 89 | . 2 32 1 2 . . 11 16 25 . Melee 34 | . . 1 1 2 . . 11 16 3 . Projectile . | . . . . . . . . . . . AOE 55 | . 2 31 . . . . . . 22 . Terrain Rammed . | . . . . . . . . . . . Walls Destroyed . | . . . . . . . . . . . Machines Disabled . | . . . . . . . . . . . Actions | -11 -10 -9 -8 -8 -8 -8 -6 -6 -5 -5 --------- Run | Yrd Mat Mat Mat Sto Rec Scr Fac Low Fac Upp Total 8927 | 50 1098 928 478 1285 646 1246 1555 739 810 92 Wait 1545 | . 594 31 32 578 12 78 169 19 19 13 Move 6532 | 41 439 734 389 620 567 1139 1251 642 637 73 Hop . | . . . . . . . . . . . Pick Up 70 | . 6 16 6 8 3 9 12 2 8 . Fast Attach 92 | 6 6 9 4 8 6 3 7 10 33 . Attach 41 | . 3 7 3 1 . 1 8 7 11 . Detach 8 | . 2 1 . . 1 . . . 4 . Swap 52 | . 3 15 2 3 6 3 14 4 2 . Drop 90 | . 3 16 3 8 12 13 17 6 9 3 Fire 63 | 3 41 15 . . . . . . 4 . Melee 422 | . . 84 39 59 30 . 77 49 82 2 Ram . | . . . . . . . . . . . Kick 2 | . 1 . . . . . . . 1 . Crush . | . . . . . . . . . . . Escape Stasis . | . . . . . . . . . . . Rewire 9 | . . . . . 9 . . . . . Trap . | . . . . . . . . . . . Miscellaneous 1 | . . . . . . . . . . 1 Route ------- -11/Scrapyard -10/Materials (discovered 3 exits: *Mat x2 / Min) -9/Materials (discovered 4 exits: *Mat x3 / Min) -8/Materials -8/Storage -8/Recycling (discovered 2 exits: *Fac / *Scr) -8/Scraptown (discovered 2 exits: *Fac x2) -6/Factory (discovered 2 exits: *Fac / *Low) -6/Lower Caves -5/Factory -5/Upper Caves History --------- Turn | Location | Event 12 | -11/Scrapyard | Discovered new exit (range 15) 63 | -11/Scrapyard | Entered Materials 261 | -10/Materials | Core integrity fell below 50% 299 | -10/Materials | Discovered new exit (range 12) 318 | -10/Materials | Lost 5 parts (1p2n2w) 342 | -10/Materials | Build established: Mutant 386 | -10/Materials | Identified exit to Mines 432 | -10/Materials | Discovered new exit (range 15) 563 | -10/Materials | Derelicts attacked the area 1006 | -10/Materials | Build established: Scavenger-Mutant 1331 | -10/Materials | Entered another Materials area 1331 | -9/Materials | Evolved 2 slots: Propulsion x1, Utility x1 2008 | -9/Materials | Lost 3 parts (1p1n1u) 2232 | -9/Materials | Discovered new exit (range 16) 2233 | -9/Materials | Learned Storage terminal intel 2278 | -9/Materials | Learned location of Storage (-8) 2311 | -9/Materials | Learned location of 1 exit from Recycling 2350 | -9/Materials | Identified exit to Mines 2350 | -9/Materials | Identified exit to Materials 2354 | -9/Materials | Learned Recycling recycling unit intel 2380 | -9/Materials | Build established: Mutant 2411 | -9/Materials | Learned Storage stockpile data 2435 | -9/Materials | System corruption reached 10% 2910 | -9/Materials | Entered another Materials area 2910 | -8/Materials | Evolved 2 slots: Propulsion x1, Utility x1 3186 | -8/Materials | Repaired Hvy. Ion Engine 3231 | -8/Materials | Identified exit to Storage 3450 | -8/Materials | Build established: Gladiator 3573 | -8/Materials | Entered Storage 3575 | -8/Storage | Loaded intel: 14 terminal locations 3611 | -8/Storage | Found Prototype Launcher 3611 | -8/Storage | Identified Gui. Missile Launcher 3914 | -8/Storage | Repaired Titanium Leg 3941 | -8/Storage | Repaired Lgt. Armor Plating 3998 | -8/Storage | Repaired Broken Titanium Leg 4585 | -8/Storage | Repaired Lgt. Armor Plating 4664 | -8/Storage | Met 01-MTF 4676 | -8/Storage | Discovered new exit (range 7) 4791 | -8/Storage | Learned Factory repair station intel 4897 | -8/Storage | Learned location of Recycling (-8) 4936 | -8/Storage | Learned location of Zion (-7) 4964 | -8/Storage | Loaded intel: 11 trap records 5004 | -8/Storage | Loaded intel: 19 interactive machine locations 5126 | -8/Storage | Entered Recycling 5126 | -8/Recycling | Accompanied by 1 ally (01-MTF) 5127 | -8/Recycling | Identified exit to Scraptown 5128 | -8/Recycling | Loaded intel: 4 recycling unit locations 5501 | -8/Recycling | Scanned before Scraplab entrance 5523 | -8/Recycling | Found Prototype Energy Gun 5523 | -8/Recycling | Identified 01-MTF's Shockpuncher 5547 | -8/Recycling | Entered Scraplab 5809 | -8/Recycling | Discovered new exit (range 11) 5970 | -8/Recycling | Entered Scraptown 5970 | -8/Scraptown | Accompanied by 3 allies 5970 | -8/Scraptown | System corruption cleaned by C-Scrubber 6116 | -8/Scraptown | Heard Great Nut preacher, LISTEN AND RECITE! 6152 | -8/Scraptown | Visited Red Mages 6171 | -8/Scraptown | Visited Observation Area 6184 | -8/Scraptown | Visited The Evicted 6199 | -8/Scraptown | Visited Symbiants 6239 | -8/Scraptown | Visited Scrapoid Research Area 6255 | -8/Scraptown | Visited Comm Corps 6288 | -8/Scraptown | Discovered new exit (range 13) 6561 | -8/Scraptown | Visited UFD Registry 6574 | -8/Scraptown | Registered with UFD as "Cargoshaft" 6615 | -8/Scraptown | Visited Modified Component R&D 6669 | -8/Scraptown | Visited DA-N13 Charitable Foundation 6674 | -8/Scraptown | Found DCF Scrap (29 items) 6717 | -8/Scraptown | Visited Analyses Database 6744 | -8/Scraptown | Visited Sword Containment 6759 | -8/Scraptown | Found Prototype Slashing Weapon 6759 | -8/Scraptown | Identified Companion Sword 6783 | -8/Scraptown | Visited Research Penetration Think Tank 6811 | -8/Scraptown | Visited Derelict Rescue Squad 6821 | -8/Scraptown | Found DRS Beacon 6843 | -8/Scraptown | Visited Botcube Research 6993 | -8/Scraptown | Found Lrg. Botcube 7066 | -8/Scraptown | Lrg. Botcube activated 7139 | -8/Scraptown | Visited A0-MCA Data Center 7146 | -8/Scraptown | Given a B+ rating by A0-MCA 7149 | -8/Scraptown | Found A0-MCA's Component Scanner 7172 | -8/Scraptown | Visited Science Guys 7211 | -8/Scraptown | Visited Junk Cannon Lab 7350 | -8/Scraptown | Build established: Commander-Mutant 7402 | -8/Scraptown | Met Optimus 7402 | -8/Scraptown | Accepted into 0bPrime 7465 | -8/Scraptown | Discovered new exit (range 5) 7490 | -8/Scraptown | Entered Factory 7490 | -6/Factory | Accompanied by 4 allies 7490 | -6/Factory | Evolved 4 slots: Propulsion x1, Utility x3 7491 | -6/Factory | Identified exit to Lower Caves 7492 | -6/Factory | Loaded intel: 6 repair station locations 7654 | -6/Factory | Lost 3 allies 7660 | -6/Factory | Discovered new exit (range 8) 7668 | -6/Factory | Identified exit to Factory 7765 | -6/Factory | Central database locked down 7905 | -6/Factory | Build established: Mutant 8541 | -6/Factory | Garrison activated, responded to threat 8692 | -6/Factory | Build established: Scavenger-Mutant 9207 | -6/Factory | Build established: Mutant 9346 | -6/Factory | Lost 3 parts (1n2u) 9374 | -6/Factory | Entered Lower Caves 9479 | -6/Lower Caves | Core integrity fell below 50% 9778 | -6/Lower Caves | Build established: Scavenger-Mutant 10157 | -6/Lower Caves | Build established: Scavenger-Assassin 10185 | -6/Lower Caves | Spotted B-75 Beast 10202 | -6/Lower Caves | Crushed by falling debris 10264 | -6/Lower Caves | Core integrity fell below 20% 10268 | -6/Lower Caves | Destroyed B-75 Beast 10281 | -6/Lower Caves | Lost 5 parts (1p3n1u) 10323 | -6/Lower Caves | Encountered a Warlord checkpoint 10450 | -6/Lower Caves | Found Alien Artifact 10450 | -6/Lower Caves | Identified Core Expander 10450 | -6/Lower Caves | Installed Core Expander, added new Propulsion slot 10476 | -6/Lower Caves | P1-3CE showed up to help 10478 | -6/Lower Caves | P1-3CE revealed a hidden path 10498 | -6/Lower Caves | Entered Factory 10498 | -5/Factory | Evolved 2 slots: Utility x2 10552 | -5/Factory | Build established: Mutant 10635 | -5/Factory | Discovered new exit (range 7) 11070 | -5/Factory | Lost 5 parts (1p1n3u) 11352 | -5/Factory | Build established: Scavenger-Mutant 11488 | -5/Factory | Lost 3 parts (2n1u) 11532 | -5/Factory | Lost 3 parts (2n1u) 11533 | -5/Factory | Destroyed 7 combat bots 11693 | -5/Factory | Lost 6 parts (1p2n3u) 11718 | -5/Factory | Core integrity fell below 50% 11853 | -5/Factory | Lost 3 parts (1n2u) 11861 | -5/Factory | Cargo convoy interrupted 11925 | -5/Factory | Lost 5 parts (1p4n) 12067 | -5/Factory | Identified exit to Upper Caves 12068 | -5/Factory | Core integrity fell below 20% 12068 | -5/Factory | Entered Upper Caves 12069 | -5/Upper Caves | Encountered a Warlord checkpoint 12103 | -5/Upper Caves | Spotted B-75 Beast 12107 | -5/Upper Caves | Activated DRS Beacon 12177 | -5/Upper Caves | Lost 5 parts (3n2u) 12187 | -5/Upper Caves | Destroyed by B-75 Beast with Heavy Plasma Cannon Last Messages --------------- 12175_ B-75 Beast suffers critical hit (Destroy). 12175_ HV Slug penetrates B-75 Beast. 12178_ HV Slug penetrates Wall. 12178_ B-75 Beast suffers critical hit (Destroy). 12178_ HV Slug penetrates B-75 Beast. 12178_ B-75 Beast suffers critical hit (Destroy). 12178_ HV Slug penetrates B-75 Beast. 12184_ HV Slug penetrates Wall. 12184_ HV Slug penetrates B-75 Beast. 12187_ QQN RG V 12187_ HV Slug penetrates Earth. 12187_ HV Slug penetrates Wall. 12187_ HV Slug penetrates Earth. Map ----- +----------------------------------------------------+ | ?????????????????????????????????????????????????? | | ?????????????????????????????????????????????????? | | ?????????????????????????????????????????????????? | | ?????????????????????????????????????????????????? | | ?????????????????????????????????????????????????? | | ?????????????????????????????????????????????????? | | ?????????????????????????????????????????????????? | | ?????????????????????????#???????????????????????? | | ???????????????????? ???# ?????????????????????? | | ???????????????????? ### #?????????????????????? | | ????????????????????? ##????????????????????? | | ????????????????????? ?????????????????????? | | ???????????? ? ?????? ?????????????????????? | | ??????????? ????? #?????????????????????? | | ??????????? ????? ####??????????????????? | | ???????????# ???# ???????????????????? | | ???????????# ??# ????????????????????? | | ????????????? ?## ?#???????????????????? | | ?????????????? ## ??????????????????????? | | ?????????????? ? #??????????????????????? | | ???????????? #### #?#????????????????????? | | ???????????= #???????????????????????? | | ????????????? h ; ##???#####??????????????? | | ??????????? ?????h ;;BB;##### #??????????????? | | ??????????????#????##;;BB;;## ##?????????????? | | ???????????????????# ; @ ##????????????? | | ???????????????????# ; ;;; ##???????????? | | ???????????????#???##;; % ;;; ;#???????????? | | ??????????????????## ;; ;##???????????? | | ???????????????????## *! #???????????? | | ?????????????????#??## |!* #???????????? | | ?????????????????????##!! #???????????? | | ??????????????????????## % ;# !% #??????#????? | | ???????????????????????####### #???????????? | | ????????????????#????????????# #????#??????? | | ?????????????????????????????# #???????????? | | ?????????????????????????????#########?#?????????? | | ?????????????????????????????#???????????????????? | | ?????????????????????????????????????????????????? | | ?????????????????????????#????#??????????????????? | | ??????????????????#??????????????????????????????? | | ???????????????????#?????????????#???????????????? | | ?????????????????????????????????????????????????? | | ?????????????????????????????????????????????????? | | ?????????????????????????????#???????????????????? | | ?????????????????????????????????????????????????? | | ?????????????????????????????????????????????????? | | ?????????????????????????????????????????????????? | | ?????????????????????????????????????????????????? | | | +----------------------------------------------------+ Best States ------------- Heat Dissipation 78 Energy Generation 21 Energy Capacity 315 Matter Stores 300 Matter Capacity 400 Sight Range 16 Robot Scan Range 16 Terrain Scan Range 14 Terrain Scan Density 10 Armor Coverage 375 Resistance: EM 25 Power Shielding 66 Melee Speed Boost 20 Phase Shifting 5 Evasion (%) 55 Melee Accuracy 13 Target Analysis 9 Core Analysis 6 Recoil Reduction 2 Item Schematics ----------------- Plasma Cutter | -6/Factory | Scanalyzed Lrg. Storage Unit | -6/Factory | Scanalyzed Robot Schematics ------------------ None Fabricated ------------ Nothing Repaired ---------- Hvy. Ion Engine | 28% | -8/Materials Titanium Leg | 22% | -8/Storage Lgt. Armor Plating | 65% | -8/Storage Titanium Leg | 23% | -8/Storage | Broken Lgt. Armor Plating | 1% | -8/Storage Studied --------- Imp. Aluminum Leg | -6/Factory | Hacked Alien Tech Used ----------------- Core Expander Achievements -------------- Frankenstein Frienemies Martial Artist Melee Specialist Challenges ------------ None Game ------ Seed NovaGrapheneMegatreads Manual? 0 Play Time 01:20:29 Cumulative 306.3 hours Start 2026.03.15 @ 13:10:56 End 2026.03.15 @ 14:33:48 Sessions 1 Manual Loads 0 Difficulty Rogue Special Mode None Game No. 235 Rogue 235 Adventurer 0 Explorer 0 Win Type - Total 12 Types 8/0/3/1/0/0/0/0/0/0 Lore% 86 Gallery% 72 Achievement% 62 Wizard Run 0 Options --------- Layout 1 ASCII 0 Keyboard 0 Movement Numpad Keybinds 0 Fullscreen 1 Font 24/Smallcaps Map View 50x35 Zoom Use 0% Tactical HUD 1 Map Filters NONE Filters NONE Steam 1 RUN: 716715e3-ecd6-4fca-88d7-ffd796e323f1